bitfinex-derivatives/quotes_BTCF0:USTF0_20241116
["timestamp","ask_amount","ask_price","bid_price","bid_amount"]
[1731731824026,0.00012611,91298.0,91296.0,0.10107238]
[1731731824820,0.00012611,91298.0,91297.0,0.3608]
[1731731834036,0.00164332,91303.0,91297.0,0.6894]
[1731731834236,0.00164332,91303.0,91302.0,0.06807238]
[1731731834424,0.00164332,91303.0,91302.0,0.15363238]
[1731731835032,0.0051,91317.0,91302.0,0.15363238]
[1731731835231,0.0103117,91316.0,91312.0,0.06807238]
[1731731835428,0.36140001,91319.0,91315.0,0.06807238]
[1731731835733,0.01030992,91318.0,91315.0,0.06807238]
[1731731835931,0.01030992,91317.0,91315.0,0.06807238]
[1731731836124,0.01030992,91316.0,91315.0,0.06807238]
[1731731837332,0.02697685,91316.0,91315.0,0.06807238]
[1731731837532,0.02697685,91319.0,91315.0,0.06807238]
[1731731837834,0.02697685,91318.0,91315.0,0.06807238]
[1731731838037,0.02697685,91317.0,91315.0,0.06807238]
[1731731838239,0.02697685,91316.0,91314.0,0.16664476]
[1731731838441,0.01030992,91315.0,91314.0,0.22174005]
[1731731838644,0.01030992,91319.0,91314.0,0.15366767]
[1731731838831,0.02680964,91318.0,91314.0,0.08559529]
[1731731839034,0.3608,91320.0,91317.0,0.06807238]
[1731731839248,0.02681229,91319.0,91317.0,0.06807238]
[1731731839450,0.01031242,91318.0,91317.0,0.06807238]
[1731731845744,0.3608,91320.0,91317.0,0.06807238]
[1731731845951,0.01035284,91319.0,91317.0,0.06807238]
[1731731846153,0.01035284,91318.0,91317.0,0.06807238]
[1731731847459,0.01035284,91318.0,91306.0,0.3608]
[1731731847759,0.3608,91320.0,91306.0,0.3608]
[1731731847760,0.04295284,91317.0,91312.0,0.08556]
[1731731847957,0.01035284,91316.0,91312.0,0.08556]
[1731731849358,0.02692786,91316.0,91312.0,0.08556]
[1731731849856,0.02692786,91316.0,91306.0,0.41483065]
[1731731850045,0.06807238,91311.0,91307.0,0.08556]
[1731731850351,0.16402486,91309.0,91303.0,0.08556]
[1731731850553,0.13110942,91304.0,91303.0,0.08556]
[1731731850752,0.02707567,91304.0,91303.0,0.15363238]
[1731731850959,0.02707567,91309.0,91303.0,0.15363238]
[1731731851158,0.02707567,91308.0,91303.0,0.08556]
[1731731851457,0.02707567,91307.0,91303.0,0.08556]
[1731731851666,0.02707567,91306.0,91303.0,0.08556]
[1731731851856,0.02707567,91305.0,91303.0,0.08556]
[1731731852058,0.16402486,91314.0,91303.0,0.08556]
[1731731852059,0.16402486,91314.0,91304.0,0.06807238]
[1731731852363,0.17449909,91313.0,91311.0,0.06807238]
[1731731852547,0.16402486,91313.0,91311.0,0.06807238]
[1731731852748,0.02725023,91312.0,91305.0,0.1036218]
[1731731853153,0.13117462,91306.0,91305.0,0.1036218]
[1731731853360,0.01048086,91306.0,91305.0,0.1036218]
[1731731853554,0.065,91323.0,91305.0,0.1036218]
[1731731853555,0.01048086,91307.0,91305.0,0.1036218]
[1731731853761,0.01048086,91306.0,91305.0,0.1036218]
[1731731854455,0.01048086,91307.0,91305.0,0.1036218]
[1731731854654,0.01048086,91306.0,91305.0,0.1036218]
[1731731854851,0.16402486,91314.0,91305.0,0.1036218]
[1731731854852,0.14165548,91308.0,91305.0,0.1036218]
[1731731855052,0.01048086,91307.0,91305.0,0.1036218]
[1731731855461,0.01054888,91306.0,91305.0,0.1036218]
[1731731855662,0.01054888,91306.0,91303.0,0.3618]
[1731731855867,0.16297462,91305.0,91303.0,0.44636]
[1731731856168,0.02777331,91304.0,91303.0,0.44636]
[1731731857462,0.02777331,91304.0,91303.0,0.08556]
[1731731857855,0.15898229,91304.0,91303.0,0.08556]
[1731731858054,0.02777331,91304.0,91303.0,0.08556]
[1731731858658,0.02777331,91304.0,91297.0,0.08556]
[1731731858966,0.1312215,91302.0,91297.0,0.08556]
[1731731859164,0.02777331,91301.0,91297.0,0.08556]
[1731731859369,0.02777331,91301.0,91295.0,0.08556]
[1731731860480,0.02777331,91300.0,91295.0,0.08556]
[1731731860688,0.4926615,91303.0,91295.0,0.08556]
[1731731860689,0.02777331,91299.0,91295.0,0.08556]
[1731731860896,0.02777331,91298.0,91295.0,0.08556]
[1731731861089,0.01054888,91297.0,91295.0,0.08556]
[1731731861291,0.01054888,91296.0,91295.0,0.08556]
[1731731861491,0.01054888,91302.0,91295.0,0.08556]
[1731731861687,0.02775533,91302.0,91295.0,0.08556]
[1731731861884,0.15897683,91302.0,91295.0,0.08556]
[1731731862086,0.02775533,91301.0,91295.0,0.08556]
[1731731862280,0.01054888,91302.0,91298.0,0.1036218]
[1731731862486,0.01054888,91301.0,91298.0,0.1036218]
[1731731862685,0.01054888,91300.0,91298.0,0.1036218]
[1731731862996,0.41677365,91311.0,91298.0,0.1036218]
[1731731862997,0.01054888,91299.0,91298.0,0.4644218]
[1731731863499,0.1312215,91309.0,91298.0,0.4644218]
[1731731863778,0.15823876,91308.0,91298.0,0.7259825]
[1731731863991,0.02701726,91307.0,91298.0,0.7259825]
[1731731864174,0.02701726,91306.0,91298.0,0.4644218]
[1731731864374,0.01039125,91305.0,91298.0,0.4644218]
[1731731864578,0.01039125,91304.0,91298.0,0.4644218]
[1731731864777,0.1312215,91309.0,91303.0,0.1036218]
[1731731864981,0.01037925,91308.0,91307.0,0.3608]
[1731731865173,0.1312215,91309.0,91307.0,0.44628]
[1731731865375,0.1312215,91313.0,91308.0,0.1036218]
[1731731865571,0.1312215,91313.0,91312.0,0.1036218]
[1731731865983,0.1312215,91314.0,91312.0,0.1036218]
[1731731866467,0.1312215,91316.0,91312.0,0.1036218]
[1731731866670,0.16402486,91321.0,91315.0,0.1036218]
[1731731866858,0.00997229,91320.0,91315.0,0.1036218]
[1731731867056,0.00997229,91319.0,91315.0,0.1036218]
[1731731867253,0.13112784,91316.0,91315.0,0.1036218]
[1731731867965,0.16402486,91321.0,91315.0,0.1036218]
[1731731868166,0.1311246,91316.0,91315.0,0.1036218]
[1731731868371,0.52482486,91322.0,91315.0,0.1036218]
[1731731868671,0.1311246,91316.0,91315.0,0.1036218]
[1731731872272,0.1311246,91322.0,91315.0,0.68932]
[1731731872470,0.16402486,91328.0,91321.0,0.1036218]
[1731731872471,0.1311246,91328.0,91321.0,0.1036218]
[1731731872685,0.00992794,91327.0,91322.0,0.08544]
[1731731872878,0.00992794,91326.0,91323.0,0.08544]
[1731731873063,0.00992794,91325.0,91323.0,0.08544]
[1731731873264,0.0316,91325.0,91314.0,0.1036218]
[1731731873575,0.1311275,91320.0,91315.0,0.08544]
[1731731874561,0.00965016,91319.0,91315.0,0.08544]
[1731731874766,0.00965016,91318.0,91315.0,0.08544]
[1731731874977,0.00965016,91317.0,91315.0,0.08544]
[1731731875167,0.00965016,91316.0,91315.0,0.08544]
[1731731875365,0.00965016,91320.0,91315.0,0.08544]
[1731731875567,0.00965016,91319.0,91315.0,0.08544]
[1731731875871,0.00965016,91318.0,91315.0,0.08544]
[1731731876069,0.00965016,91317.0,91315.0,0.08544]
[1731731876279,0.00965016,91316.0,91315.0,0.08544]
[1731731876470,0.00965016,91320.0,91315.0,0.08544]
[1731731876674,0.00965016,91319.0,91315.0,0.08544]
[1731731876971,0.0316,91325.0,91315.0,0.08544]
[1731731876972,0.1311275,91320.0,91315.0,0.08544]
[1731731877281,0.00968165,91319.0,91315.0,0.08544]
[1731731877580,0.00968165,91318.0,91315.0,0.08544]
[1731731877876,0.0316,91325.0,91315.0,0.08544]
[1731731877877,0.00968165,91317.0,91315.0,0.08544]
[1731731878078,0.00968165,91316.0,91315.0,0.08544]
[1731731878270,0.00968165,91320.0,91315.0,0.08544]
[1731731878469,0.00968165,91319.0,91315.0,0.08544]
[1731731879172,0.00968165,91319.0,91316.0,0.08544]
[1731731879376,0.14080915,91319.0,91316.0,0.08544]
[1731731879674,0.02562963,91318.0,91316.0,0.08544]
[1731731879878,0.02562963,91317.0,91316.0,0.08544]
[1731731880186,0.18965449,91318.0,91316.0,0.08544]
[1731731880476,0.02591477,91317.0,91316.0,0.08544]
[1731731880771,0.17399208,91317.0,91316.0,0.08544]
[1731731881376,0.00996722,91317.0,91316.0,0.08544]
[1731731881577,0.17399208,91317.0,91316.0,0.08544]
[1731731881985,0.00996722,91317.0,91316.0,0.08544]
[1731731882874,0.17399208,91317.0,91307.0,0.52119961]
[1731731883073,0.13112116,91311.0,91308.0,0.08544]
[1731731883582,0.13112116,91310.0,91308.0,0.08544]
[1731731883780,0.13112116,91310.0,91307.0,0.52119961]
[1731731883781,0.13112116,91310.0,91307.0,0.41757781]
[1731731884075,0.16402486,91314.0,91308.0,0.08544]
[1731731884281,0.13111508,91309.0,91308.0,0.08544]
[1731731884583,0.16402486,91314.0,91308.0,0.08544]
[1731731884780,0.1311205,91309.0,91308.0,0.08544]
[1731731885172,0.16402486,91313.0,91308.0,0.08544]
[1731731885377,0.16402486,91314.0,91308.0,0.08544]
[1731731885578,0.01002907,91313.0,91308.0,0.08544]
[1731731885880,0.13111825,91309.0,91308.0,0.08544]
[1731731886582,0.3608,91309.0,91307.0,0.00096]
[1731731886766,0.17439052,91308.0,91303.0,0.14008554]
[1731731886971,0.01047454,91307.0,91303.0,0.14008554]
[1731731887175,0.3608,91318.0,91303.0,0.14008554]
[1731731887176,0.01047454,91306.0,91303.0,0.14008554]
[1731731887375,0.01047454,91305.0,91303.0,0.14008554]
[1731731887581,0.01047433,91304.0,91303.0,0.14008554]
[1731731887772,0.01046602,91304.0,91298.0,0.261432]
[1731731887976,0.41999986,91318.0,91299.0,0.08544]
[1731731887977,0.01046602,91303.0,91299.0,0.08544]
[1731731888171,0.3608,91308.0,91299.0,0.08544]
[1731731888172,0.1311322,91307.0,91299.0,0.08544]
[1731731888378,0.01046597,91302.0,91299.0,0.08544]
[1731731888575,0.02721149,91306.0,91299.0,0.08544]
[1731731888772,0.01046597,91305.0,91299.0,0.08544]
[1731731889177,0.01046597,91306.0,91299.0,0.08544]
[1731731889381,0.03366124,91305.0,91299.0,0.08544]
[1731731889581,0.02735078,91304.0,91299.0,0.08544]
[1731731889787,0.02730268,91303.0,91299.0,0.08544]
[1731731889983,0.02730268,91302.0,91299.0,0.08544]
[1731731890179,0.02730268,91301.0,91299.0,0.08544]
[1731731890373,0.02730268,91300.0,91299.0,0.08544]
[1731731890578,0.02735135,91300.0,91299.0,0.08544]
[1731731893080,0.02735135,91300.0,91297.0,0.08548]
[1731731893377,0.3608,91298.0,91297.0,0.08548]
[1731731893683,0.38815135,91298.0,91297.0,0.08548]
[1731731894784,0.51928533,91298.0,91297.0,0.08548]
[1731731895285,0.38815135,91298.0,91297.0,0.08548]
[1731731896190,0.3608,91302.0,91297.0,0.08548]
[1731731896484,0.02766019,91298.0,91297.0,0.08548]
[1731731896690,0.3608,91302.0,91297.0,0.08548]
[1731731896691,0.01063853,91301.0,91297.0,0.08548]
[1731731896888,0.0105381,91300.0,91297.0,0.08548]
[1731731897092,0.3608,91305.0,91297.0,0.08548]
[1731731897589,0.01053774,91304.0,91297.0,0.08548]
[1731731897787,0.01053774,91303.0,91297.0,0.08548]
[1731731897985,0.01053774,91302.0,91297.0,0.08548]
[1731731898289,0.01053774,91301.0,91297.0,0.08548]
[1731731898488,0.3608,91305.0,91297.0,0.08548]
[1731731898684,0.01044747,91304.0,91297.0,0.08548]
[1731731898989,0.01044747,91303.0,91297.0,0.08548]
[1731731899188,0.01044747,91302.0,91297.0,0.08548]
[1731731899485,0.01044747,91301.0,91300.0,0.1036218]
[1731731899784,0.3608,91305.0,91300.0,0.1036218]
[1731731900088,0.01028866,91304.0,91298.0,0.0638]
[1731731900289,0.01028866,91303.0,91298.0,0.0638]
[1731731900479,0.01028866,91302.0,91298.0,0.1674218]
[1731731900680,0.3608,91305.0,91298.0,0.1674218]
[1731731900890,0.01028628,91304.0,91298.0,0.1674218]
[1731731901080,0.01028628,91303.0,91298.0,0.1674218]
[1731731901278,0.01028628,91302.0,91298.0,0.1674218]
[1731731901486,0.3608,91305.0,91298.0,0.1674218]
[1731731901777,0.01028651,91304.0,91298.0,0.1674218]
[1731731901981,0.3608,91305.0,91298.0,0.1674218]
[1731731902484,0.13113398,91302.0,91298.0,0.1674218]
[1731731902882,0.13113398,91302.0,91301.0,0.06800867]
[1731731903490,0.01023909,91302.0,91301.0,0.06800867]
[1731731904489,0.13108653,91303.0,91301.0,0.06800867]
[1731731904791,0.01024491,91302.0,91301.0,0.06800867]
[1731731906288,0.14133144,91302.0,91301.0,0.06800867]
[1731731906486,0.01024491,91302.0,91301.0,0.06800867]
[1731731907293,0.13112537,91302.0,91301.0,0.06800867]
[1731731907692,0.01010587,91302.0,91301.0,0.06800867]
[1731731907991,0.01010587,91302.0,91301.0,0.12196287]
[1731731908178,0.01010587,91302.0,91298.0,0.0638]
[1731731908179,0.01010587,91302.0,91298.0,0.13180867]
[1731731908383,0.52527599,91307.0,91298.0,0.13180867]
[1731731908384,0.13114291,91300.0,91298.0,0.13180867]
[1731731908786,0.0103616,91299.0,91298.0,0.13180867]
[1731731909286,0.14150451,91299.0,91298.0,0.13180867]
[1731731909794,0.14150451,91299.0,91298.0,0.20282016]
[1731731909985,0.0103616,91299.0,91298.0,0.17092016]
[1731731910593,0.0103616,91299.0,91298.0,0.13902016]
[1731731911102,0.0103616,91299.0,91295.0,0.261432]
[1731731911288,0.0103616,91299.0,91296.0,0.0854]
[1731731911482,0.0103616,91298.0,91296.0,0.0854]
[1731731911692,0.13116569,91300.0,91296.0,0.0854]
[1731731911693,0.0103616,91297.0,91296.0,0.0854]
[1731731911996,0.15871581,91299.0,91296.0,0.0854]
[1731731912186,0.02755012,91298.0,91296.0,0.0854]
[1731731912387,0.02755012,91297.0,91296.0,0.0854]
[1731731914997,0.15871581,91297.0,91296.0,0.0854]
[1731731915189,0.02755012,91297.0,91296.0,0.0854]
[1731731915698,0.15871581,91297.0,91293.0,0.06800867]
[1731731915903,0.02755012,91296.0,91294.0,0.0854]
[1731731916200,0.02755012,91295.0,91294.0,0.0854]
[1731731917496,0.52527599,91298.0,91294.0,0.0854]
[1731731917792,0.02754958,91297.0,91294.0,0.0854]
[1731731917996,0.02754958,91296.0,91294.0,0.0854]
[1731731918201,0.02754958,91295.0,91294.0,0.0854]
[1731731921095,0.01059599,91295.0,91294.0,0.0854]
[1731731923904,0.01059599,91295.0,91294.0,0.15340867]
[1731731924389,0.16391598,91299.0,91294.0,0.15340867]
[1731731924596,0.01023191,91298.0,91294.0,0.15340867]
[1731731924795,0.02660297,91298.0,91294.0,0.15340867]
[1731731924996,0.01023191,91297.0,91294.0,0.15340867]
[1731731925209,0.01023191,91296.0,91294.0,0.15340867]
[1731731925393,0.01023191,91295.0,91294.0,0.15340867]
[1731731925897,0.01023191,91296.0,91294.0,0.15340867]
[1731731926097,0.13128888,91297.0,91294.0,0.15340867]
[1731731926098,0.01023191,91295.0,91294.0,0.15340867]
[1731731926304,0.13128888,91297.0,91294.0,0.15340867]
[1731731926305,0.01023191,91296.0,91294.0,0.15340867]
[1731731926493,0.01023191,91295.0,91294.0,0.15340867]
[1731731926800,0.02669794,91295.0,91294.0,0.15340867]
[1731731927005,0.02669794,91296.0,91294.0,0.15340867]
[1731731927205,0.02669794,91295.0,91294.0,0.15340867]
[1731731927501,0.02669794,91295.0,91294.0,0.0854]
[1731731928001,0.0264465,91295.0,91294.0,0.0854]
[1731731929107,0.01025941,91295.0,91294.0,0.0854]
[1731731929295,0.14154829,91297.0,91294.0,0.0854]
[1731731929498,0.02667448,91296.0,91294.0,0.0854]
[1731731929697,0.02667448,91295.0,91294.0,0.0854]
[1731731931497,0.02674584,91296.0,91294.0,0.0854]
[1731731931801,0.02674584,91295.0,91294.0,0.0854]
[1731731931999,0.02674584,91296.0,91294.0,0.0854]
[1731731932306,0.02674584,91295.0,91294.0,0.0854]
[1731731932506,0.02674584,91297.0,91294.0,0.0854]
[1731731932721,0.13128888,91298.0,91294.0,0.0854]
[1731731932722,0.02674584,91296.0,91294.0,0.0854]
[1731731932898,0.02674584,91295.0,91294.0,0.0854]
[1731731933206,0.13128888,91298.0,91294.0,0.0854]
[1731731933207,0.02674584,91297.0,91294.0,0.0854]
[1731731933409,0.02674584,91296.0,91294.0,0.0854]
[1731731933705,0.02674584,91295.0,91294.0,0.0854]
[1731731933908,0.15803472,91297.0,91294.0,0.0854]
[1731731934107,0.13128888,91297.0,91296.0,0.2619061]
[1731731934310,0.15824664,91297.0,91296.0,0.2619061]
[1731731934510,0.15824664,91297.0,91294.0,0.0854]
[1731731934700,0.02695776,91296.0,91294.0,0.0854]
[1731731934903,0.13128888,91297.0,91294.0,0.0854]
[1731731935098,0.02694699,91296.0,91294.0,0.0854]
[1731731935303,0.01036423,91295.0,91294.0,0.0854]
[1731731936000,0.01036423,91295.0,91293.0,0.06800867]
[1731731936310,0.14165311,91294.0,91293.0,0.08536]
[1731731936502,0.02702475,91294.0,91293.0,0.08536]
[1731731937109,0.02702475,91297.0,91293.0,0.08536]
[1731731937305,0.06800867,91295.0,91289.0,0.26197648]
[1731731937504,0.06800867,91295.0,91287.0,0.26197648]
[1731731937505,0.56014703,91290.0,91287.0,0.26197648]
[1731731937700,0.56014703,91290.0,91284.0,0.08536]
[1731731937701,0.02702475,91289.0,91284.0,0.34733648]
[1731731937899,0.13134345,91286.0,91284.0,0.34733648]
[1731731938103,0.02702475,91285.0,91284.0,0.34733648]
[1731731938300,0.02702475,91285.0,91284.0,0.34740564]
[1731731938504,0.13134345,91285.0,91282.0,0.26204564]
[1731731938717,0.14821886,91284.0,91280.0,0.26204564]
[1731731938915,0.15878492,91283.0,91279.0,0.26204564]
[1731731939208,0.15878492,91283.0,91277.0,0.00164338]
[1731731939209,0.15878492,91282.0,91278.0,0.26204564]
[1731731939413,0.01056606,91281.0,91278.0,0.26204564]
[1731731939619,0.01056606,91281.0,91277.0,0.26368902]
[1731731939819,0.01056606,91280.0,91277.0,0.26368902]
[1731731940118,0.01056606,91279.0,91277.0,0.26368902]
[1731731940308,0.14187921,91278.0,91277.0,0.00164338]
[1731731940517,0.01056606,91278.0,91277.0,0.06965205]
[1731731940820,0.13131315,91283.0,91277.0,0.33169769]
[1731731941014,0.13131315,91283.0,91282.0,0.06800867]
[1731731941209,0.13127571,91283.0,91282.0,0.06800867]
[1731731941411,0.14182379,91283.0,91282.0,0.06800867]
[1731731941620,0.01054808,91283.0,91282.0,0.06800867]
[1731731941823,0.0274234,91283.0,91278.0,0.0332]
[1731731942113,0.0274234,91282.0,91277.0,0.06965205]
[1731731942318,0.0274234,91281.0,91277.0,0.00164338]
[1731731942510,0.0274234,91280.0,91277.0,0.00164338]
[1731731942705,0.0274234,91279.0,91277.0,0.00164338]
[1731731942909,0.0274234,91278.0,91277.0,0.00164338]
[1731731944414,0.09543207,91278.0,91277.0,0.00164338]
[1731731944609,0.54537395,91278.0,91273.0,0.00010896]
[1731731944909,0.55762978,91274.0,91273.0,0.00010896]
[1731731945109,0.44147661,91274.0,91273.0,0.00010896]
[1731731945818,0.44147661,91274.0,91273.0,2e-07]
[1731731946816,0.44159209,91274.0,91273.0,2e-07]
[1731731947010,0.44121558,91274.0,91273.0,2e-07]
[1731731947515,0.51894118,91274.0,91273.0,2e-07]
[1731731948214,0.38796237,91274.0,91273.0,2e-07]
[1731731949008,0.37131813,91274.0,91273.0,2e-07]
[1731731950522,0.36091548,91274.0,91273.0,2e-07]
[1731731950817,0.3712646,91274.0,91273.0,2e-07]
[1731731952218,0.3712646,91274.0,91273.0,0.13601754]
[1731731952219,0.00011548,91274.0,91273.0,0.13601754]
[1731731952425,0.00011548,91274.0,91273.0,0.06800887]
[1731731952925,0.0051,91289.0,91273.0,0.13601754]
[1731731953109,0.13097881,91291.0,91288.0,0.06800867]
[1731731953312,0.19667204,91306.0,91290.0,0.06800867]
[1731731953313,0.13097881,91293.0,91290.0,0.06800867]
[1731731953509,0.0051,91306.0,91291.0,0.0854]
[1731731953510,0.41695734,91302.0,91291.0,0.0854]
[1731731953815,0.01019657,91301.0,91291.0,0.0854]
[1731731954023,0.01019657,91300.0,91291.0,0.0854]
[1731731954209,0.41751735,91302.0,91291.0,0.0854]
[1731731954411,0.01002801,91301.0,91291.0,0.0854]
[1731731954610,0.41751735,91302.0,91291.0,0.0854]
[1731731954812,0.41751735,91302.0,91290.0,0.06800867]
[1731731954813,0.01002802,91301.0,91290.0,0.06800867]
[1731731955113,0.41759734,91302.0,91291.0,0.0854]
[1731731955308,0.01000751,91301.0,91291.0,0.0854]
[1731731955515,0.13097881,91296.0,91291.0,0.0854]
[1731731957220,0.13097881,91295.0,91291.0,0.0854]
[1731731958217,0.3608,91292.0,91281.0,0.0325]
[1731731958424,0.06800867,91282.0,91280.0,0.08536]
[1731731959414,0.13087205,91284.0,91280.0,0.08536]
[1731731959615,0.01020212,91283.0,91280.0,0.08536]
[1731731959929,0.13087205,91284.0,91280.0,0.08536]
[1731731960228,0.01017747,91283.0,91280.0,0.08536]
[1731731960427,0.01017747,91282.0,91280.0,0.08536]
[1731731960722,0.13087205,91283.0,91278.0,0.08536]
[1731731960929,0.13087205,91284.0,91278.0,0.08536]
[1731731961129,0.01018098,91283.0,91278.0,0.08536]
[1731731961324,0.13087205,91284.0,91278.0,0.08536]
[1731731961525,0.01018215,91283.0,91278.0,0.08536]
[1731731961723,0.01018215,91282.0,91278.0,0.08536]
[1731731961924,0.13087205,91283.0,91278.0,0.08536]
[1731731962125,0.01017938,91282.0,91278.0,0.08536]
[1731731962430,0.01018067,91281.0,91278.0,0.08536]
[1731731962737,0.3608,91293.0,91278.0,0.08536]
[1731731962930,0.02646977,91292.0,91278.0,0.08536]
[1731731963126,0.02646977,91291.0,91278.0,0.08536]
[1731731963330,0.02646276,91290.0,91278.0,0.08536]
[1731731963531,0.01018068,91289.0,91278.0,0.08536]
[1731731963829,0.01017702,91288.0,91278.0,0.08536]
[1731731964034,0.02648916,91287.0,91278.0,0.08536]
[1731731964231,0.01019505,91286.0,91278.0,0.08536]
[1731731964434,0.13087205,91292.0,91278.0,0.08536]
[1731731964435,0.01019505,91285.0,91278.0,0.08536]
[1731731964731,0.01019505,91284.0,91278.0,0.08536]
[1731731964935,0.01019505,91283.0,91278.0,0.08536]
[1731731965238,0.01019505,91282.0,91278.0,0.08536]
[1731731965432,0.13087205,91292.0,91278.0,0.08536]
[1731731965433,0.01019505,91281.0,91278.0,0.08536]
[1731731965634,0.01019505,91280.0,91278.0,0.08536]
[1731731965836,0.01019505,91279.0,91278.0,0.08536]
[1731731967337,0.01013083,91279.0,91278.0,0.08536]
[1731731967747,0.01013161,91291.0,91278.0,0.08536]
[1731731968039,0.0263422,91291.0,91278.0,0.08536]
[1731731968345,0.0263422,91290.0,91278.0,0.08536]
[1731731968635,0.13087205,91292.0,91278.0,0.08536]
[1731731968636,0.0263422,91289.0,91278.0,0.08536]
[1731731968833,0.0263422,91288.0,91278.0,0.08536]
[1731731969041,0.13087205,91292.0,91278.0,0.08536]
[1731731969042,0.01013161,91287.0,91278.0,0.08536]
[1731731969336,0.01013161,91286.0,91278.0,0.08536]
[1731731969531,0.01013161,91285.0,91278.0,0.08536]
[1731731969732,0.01013161,91284.0,91278.0,0.08536]
[1731731969934,0.01013161,91283.0,91278.0,0.08536]
[1731731970134,0.01013161,91282.0,91278.0,0.08536]
[1731731970438,0.01013161,91281.0,91278.0,0.08536]
[1731731970637,0.01001234,91280.0,91278.0,0.08536]
[1731731970937,0.13087205,91284.0,91278.0,0.08536]
[1731731971136,0.00997686,91283.0,91278.0,0.08536]
[1731731971345,0.00997686,91282.0,91278.0,0.08536]
[1731731971531,0.00997686,91281.0,91278.0,0.08536]
[1731731971843,0.13087205,91284.0,91278.0,0.08536]
[1731731972044,0.13087205,91285.0,91278.0,0.08536]
[1731731974642,0.13087205,91286.0,91278.0,0.08536]
[1731731975739,0.36144,91293.0,91278.0,0.08536]
[1731731975740,0.13087205,91285.0,91278.0,0.08536]
[1731731976046,0.13087205,91284.0,91278.0,0.08536]
[1731731976538,0.13087205,91283.0,91278.0,0.08536]
[1731731977439,0.49167205,91292.0,91278.0,0.08536]
[1731731977638,0.00979287,91291.0,91278.0,0.34740564]
[1731731977839,0.00979288,91290.0,91278.0,0.34740564]
[1731731978044,0.00979288,91289.0,91278.0,0.08536]
[1731731978240,0.00979288,91288.0,91278.0,0.08536]
[1731731978442,0.14066493,91291.0,91278.0,0.34740564]
[1731731978637,0.00979288,91290.0,91278.0,0.34740564]
[1731731979432,0.14066493,91290.0,91279.0,0.26204564]
[1731731979744,0.00979288,91289.0,91280.0,0.26204564]
[1731731980043,0.00979288,91289.0,91278.0,0.08536]
[1731731980044,0.00979288,91289.0,91279.0,0.26204564]
[1731731980543,0.13087205,91288.0,91281.0,0.26204564]
[1731731980743,0.00979288,91287.0,91281.0,0.26204564]
[1731731980944,0.00979288,91286.0,91281.0,0.26204564]
[1731731981248,0.00979288,91285.0,91281.0,0.26204564]
[1731731981449,0.00978679,91284.0,91283.0,0.26204564]
[1731731981944,0.13087205,91287.0,91283.0,0.26204564]
[1731731982146,0.14065898,91286.0,91282.0,0.26204564]
[1731731982344,0.14065898,91285.0,91282.0,0.26204564]
[1731731982538,0.42383667,91284.0,91274.0,0.26204564]
[1731731982839,0.42383667,91284.0,91273.0,2e-07]
[1731731982840,0.16418546,91278.0,91273.0,2e-07]
[1731731983042,0.00978693,91277.0,91273.0,2e-07]
[1731731983248,0.3608,91275.0,91273.0,2e-07]
[1731731983547,0.1411082,91274.0,91273.0,2e-07]
[1731731983934,0.141109,91274.0,91273.0,2e-07]
[1731731984337,0.00978693,91274.0,91273.0,2e-07]
[1731731984543,0.141109,91274.0,91273.0,2e-07]
[1731731984743,0.14110572,91274.0,91273.0,2e-07]
[1731731984936,0.16418546,91280.0,91273.0,2e-07]
[1731731984937,0.13132207,91280.0,91273.0,0.42886815]
[1731731985140,0.13132207,91284.0,91279.0,0.33022802]
[1731731985449,0.13132207,91286.0,91283.0,0.06806795]
[1731731985644,0.00978036,91285.0,91283.0,0.08532]
[1731731985843,0.13129414,91284.0,91283.0,0.08532]
[1731731986056,0.13129414,91284.0,91283.0,0.15338795]
[1731731986351,0.16418546,91288.0,91283.0,0.15338795]
[1731731986652,0.1312969,91290.0,91287.0,0.39829597]
[1731731986849,0.1312969,91297.0,91289.0,0.10362277]
[1731731987055,0.00950433,91296.0,91294.0,0.88498247]
[1731731987249,0.0051,91307.0,91295.0,0.16752277]
[1731731987250,0.16418546,91302.0,91295.0,0.16752277]
[1731731987442,0.13126761,91297.0,91295.0,0.16752277]
[1731731987644,0.0095043,91296.0,91295.0,0.16752277]
[1731731988050,0.13126761,91297.0,91295.0,0.16752277]
[1731731988444,0.13126761,91298.0,91295.0,0.16752277]
[1731731989145,0.13126761,91298.0,91296.0,0.032]
[1731731989351,0.55971561,91309.0,91296.0,0.032]
[1731731989352,0.13126761,91299.0,91296.0,0.032]
[1731731991344,0.13126761,91300.0,91296.0,0.032]
[1731731991549,0.13126761,91302.0,91299.0,0.10362277]
[1731731991753,0.13126761,91305.0,91301.0,0.10362277]
[1731731991949,0.13126761,91305.0,91304.0,0.3608]
[1731731992150,0.00164356,91309.0,91304.0,0.3608]
[1731731992357,0.00164356,91309.0,91308.0,0.10362277]
[1731731997155,0.00164356,91309.0,91308.0,0.1582483]
[1731731999556,0.13126761,91314.0,91308.0,0.05462553]
[1731731999758,0.13126761,91314.0,91309.0,0.08532]
[1731732000355,0.20177204,91325.0,91309.0,0.08532]
[1731732000356,0.0051,91325.0,91309.0,0.08532]
[1731732000552,0.19516761,91326.0,91309.0,0.08532]
[1731732000858,0.3608,91317.0,91301.0,0.19591381]
[1731732001062,0.3608,91317.0,91302.0,0.08532]
[1731732001249,0.49206761,91317.0,91302.0,0.08532]
[1731732001759,0.14075169,91316.0,91302.0,0.08532]
[1731732001955,0.00948408,91315.0,91302.0,0.08532]
[1731732002150,0.13126761,91316.0,91302.0,0.08532]
[1731732003655,0.13126761,91316.0,91293.0,0.10362277]
[1731732003852,0.13126761,91316.0,91301.0,0.08532]
[1731732004253,0.3608,91305.0,91301.0,0.08532]
[1731732004455,0.0633,91304.0,91301.0,0.08532]
[1731732005257,0.03974169,91303.0,91301.0,0.08532]
[1731732005560,0.00954169,91302.0,91301.0,0.08532]
[1731732005767,0.00954169,91302.0,91292.0,0.08532]
[1731732005963,0.00954169,91301.0,91294.0,0.3608]
[1731732006155,0.0051,91311.0,91300.0,0.10362277]
[1731732006469,0.3608,91317.0,91310.0,0.46442277]
[1731732006658,0.3608,91317.0,91311.0,0.18072]
[1731732007261,0.3608,91317.0,91311.0,0.23541614]
[1731732009576,0.3608,91323.0,91311.0,0.23541614]
[1731732011265,0.00973468,91322.0,91311.0,0.23541614]
[1731732011469,0.00973468,91321.0,91311.0,0.23541614]
[1731732011766,0.00973468,91320.0,91311.0,0.23541614]
[1731732011965,0.00973468,91319.0,91311.0,0.23541614]
[1731732012265,0.00973468,91318.0,91311.0,0.23541614]
[1731732012466,0.3608,91326.0,91317.0,0.10362277]
[1731732012668,0.00973855,91325.0,91317.0,0.10362277]
[1731732012877,0.00973855,91324.0,91311.0,0.23541614]